Workbook

Sheet 시나리오 요약
B2: 시나리오 요약
D3: 현재 값: | E3: 수익률증가 | F3: 수익률감소
E4: 만든 사람 englishysh@gmail.com 날짜 6/5/2026 | F4: 만든 사람 englishysh@gmail.com 날짜 6/5/2026
B5: 변경 셀:
C6: A반품수량 | D6: 19 | E6: 9 | F6: 29
C7: B반품수량 | D7: 31 | E7: 21 | F7: 41
B8: 결과 셀:
C9: 매출액합계 | D9: 6693900 | E9: 6754900 | F9: 6632900
B10: 참고: 현재 값 열은 시나리오 요약 보고서가 작성될 때의
B11: 변경 셀 값을 나타냅니다. 각 시나리오의 변경 셀들은
B12: 회색으로 표시됩니다.

Sheet 무작정따라하기
A1: 연간매출액
A3: 번호 | B3: 물품명 | C3: 단가 | D3: 매출수량 | E3: 반품수량 | F3: 매출액 | G3: 수익율 | H3: 순수매출액
A4: 2657 | B4: A | C4: 2600 | D4: 240 | E4: 19 | F4: =C4*D4 -> 624000 | G4: =H4/F4 -> 0.9208333333 | H4: =F4-(C4*E4) -> 574600
A5: 4284 | B5: B | C5: 3500 | D5: 154 | E5: 31 | F5: =C5*D5 -> 539000 | G5: =H5/F5 -> 0.7987012987 | H5: =F5-(C5*E5) -> 430500
A6: 3541 | B6: C | C6: 4200 | D6: 209 | E6: 22 | F6: 877800 | G6: 0.8947368421 | H6: 785400
A7: 2875 | B7: D | C7: 1800 | D7: 452 | E7: 26 | F7: 813600 | G7: 0.9424778761 | H7: 766800
A8: 3016 | B8: E | C8: 2200 | D8: 321 | E8: 13 | F8: 706200 | G8: 0.9595015576 | H8: 677600
A9: 4250 | B9: F | C9: 5400 | D9: 120 | E9: 48 | F9: 648000 | G9: 0.6 | H9: 388800
A10: 2586 | B10: G | C10: 2800 | D10: 410 | E10: 35 | F10: 1148000 | G10: 0.9146341463 | H10: 1050000
A11: 1462 | B11: H | C11: 3600 | D11: 215 | E11: 106 | F11: 774000 | G11: 0.5069767442 | H11: 392400
A12: 2253 | B12: I | C12: 4500 | D12: 325 | E12: 87 | F12: 1462500 | G12: 0.7323076923 | H12: 1071000
A13: 2028 | B13: J | C13: 3200 | D13: 248 | E13: 74 | F13: 793600 | G13: 0.7016129032 | H13: 556800
F14: 매출액합계 | H14: =SUM(H4:H13) -> 6693900

Sheet 기출01
A1: 적금 만기 금액
A3: 매월적립액 | B3: 250000
A4: 연이율 | B4: 0.1075
A5: 적립기간(년) | B5: 2
A6: 만기금액 | B6: =FV($B$4/12,$B$5*12,-$B$3,0) -> 6660712.616

Sheet 시나리오 요약 2
B2: 시나리오 요약
D3: 현재 값: | E3: 이율10% | F3: 이율11.5%
E4: 만든 사람 englishysh@gmail.com 날짜 6/5/2026 | F4: 만든 사람 englishysh@gmail.com 날짜 6/5/2026
B5: 변경 셀:
C6: 이율 | D6: 0.1075 | E6: 0.1 | F6: 0.115
B7: 결과 셀:
C8: 만기금액 | D8: 6660712.616 | E8: 6611728.841 | F8: 6710151.677
B9: 참고: 현재 값 열은 시나리오 요약 보고서가 작성될 때의
B10: 변경 셀 값을 나타냅니다. 각 시나리오의 변경 셀들은
B11: 회색으로 표시됩니다.

Sheet 시나리오 요약 3
B2: 시나리오 요약
D3: 현재 값: | E3: 200원인하 | F3: 200원인상
E4: 만든 사람 englishysh@gmail.com 날짜 6/5/2026 | F4: 만든 사람 englishysh@gmail.com 날짜 6/5/2026
B5: 변경 셀:
C6: $B$4 | D6: 1500 | E6: 1300 | F6: 1700
B7: 결과 셀:
C8: $B$8 | D8: 19539000 | E8: 9139000 | F8: 29939000
B9: 참고: 현재 값 열은 시나리오 요약 보고서가 작성될 때의
B10: 변경 셀 값을 나타냅니다. 각 시나리오의 변경 셀들은
B11: 회색으로 표시됩니다.

Sheet 기출02
A1: 이익률 계산
A3: 항목 | B3: 금액
A4: 버스요금 | B4: 1500
A5: 이용고객 | B5: 52000
A6: 매출액 | B6: =B4*B5 -> 78000000
A7: 제조원가 | B7: 58461000
A8: 영업이익 | B8: =B6-B7 -> 19539000
A9: 영업이익률 | B9: =B8/B6 -> 0.2505
